[Event "Championnat de France Universitaire Nan"]
[Site "Nancy, France"]
[Date "2020.02.08"]
[Round "4.6"]
[White "Lambert, Thomas"]
[Black "Rey, Gaetan"]
[Result "1-0"]
[WhiteElo "1988"]
[BlackElo "1824"]
[PlyCount "63"]
[EventDate "2020.??.??"]
[TimeControl "15+5"]
[WhiteClock "0:03:59"]
[BlackClock "0:00:46"]

1. e4 {[%emt 0:00:16]} c5 {[%emt 0:00:04]} 2. Nf3 {[%emt 0:00:00]} e6 {[%emt 0:
00:05]} 3. d4 {[%emt 0:00:03]} cxd4 {[%emt 0:00:02]} 4. Nxd4 {[%emt 0:00:00]}
a6 {[%emt 0:00:07]} 5. Bd3 {[%emt 0:00:04]} Qc7 {[%emt 0:00:02]} 6. c4 {[%emt
0:00:03]} Nc6 {[%emt 0:00:07]} 7. Nb3 {[%emt 0:00:09]} b6 {[%emt 0:00:27]} 8.
O-O {[%emt 0:00:02]} Bb7 {[%emt 0:00:35]} 9. Nc3 {[%emt 0:00:02]} Nf6 {[%emt 0:
00:07]} 10. Be3 {[%emt 0:00:17]} Ne5 {[%emt 0:02:25]} 11. Na4 {[%emt 0:00:45]}
Nxd3 {[%emt 0:00:46]} 12. Qxd3 {[%emt 0:00:02]} Bxe4 {[%emt 0:00:07]} 13. Qe2 {
[%emt 0:00:01]} Rb8 {[%emt 0:00:14]} 14. c5 {[%emt 0:02:23]} Bxg2 {[%emt 0:02:
51]} 15. Kxg2 {[%emt 0:00:38]} Qc6+ {[%emt 0:00:00]} 16. Qf3 {[%emt 0:00:22]}
Qxa4 {[%emt 0:00:02]} 17. cxb6 {[%emt 0:00:12]} d5 {[%emt 0:02:13]} 18. Qg3 {
[%emt 0:00:30]} Qg4 {[%emt 0:00:39]} 19. a4 {[%emt 0:00:32]} Bd6 {[%emt 0:00:
12]} 20. Qxg4 {[%emt 0:00:15]} Nxg4 {[%emt 0:00:01]} 21. a5 {[%emt 0:00:56]}
Kd7 {[%emt 0:00:35]} 22. Bc5 {[%emt 0:00:58]} Rhc8 {[%emt 0:00:08]} 23. Bxd6 {
[%emt 0:02:02]} Kxd6 {[%emt 0:00:02]} 24. Rac1 {[%emt 0:00:01]} Ne5 {[%emt 0:
00:11]} 25. Nd2 {[%emt 0:00:04]} Nd3 {[%emt 0:00:26]} 26. Rb1 {[%emt 0:00:43]}
Rc2 {[%emt 0:00:08]} 27. Rfd1 {[%emt 0:00:00]} Kc6 {[%emt 0:01:29]} 28. b4 {
[%emt 0:00:25]} f5 {[%emt 0:02:02]} 29. Nb3 {[%emt 0:00:24]} Rc3 {[%emt 0:00:
41]} 30. Nd4+ {[%emt 0:00:37]} Kd6 31. b5 {[%emt 0:00:46]} Nf4+ {[%emt 0:01:03]
} 32. Kf1 {[%emt 0:00:04]} 1-0

[Event "Championnat de France Universitaire Nan"]
[Site "Nancy, France"]
[Date "2020.02.08"]
[Round "4.7"]
[White "Ginovart, Axel"]
[Black "Gatineau, Yovann"]
[Result "0-1"]
[WhiteElo "2164"]
[BlackElo "2381"]
[PlyCount "85"]
[EventDate "2020.??.??"]
[TimeControl "15+5"]
[WhiteClock "0:00:11"]
[BlackClock "0:04:15"]

1. e4 {[%emt 0:00:01]} e5 {[%emt 0:00:00]} 2. Nf3 {[%emt 0:00:02]} Nc6 {[%emt
0:00:00]} 3. d4 {[%emt 0:00:00]} exd4 {[%emt 0:00:02]} 4. Nxd4 {[%emt 0:00:02]}
Bb4+ {[%emt 0:00:00]} 5. Bd2 {[%emt 0:02:03]} Qe7 {[%emt 0:00:01]} 6. Nxc6 {
[%emt 0:00:31]} Qxe4+ {[%emt 0:00:26]} 7. Be2 {[%emt 0:00:32]} Bxd2+ {[%emt 0:
00:12]} 8. Qxd2 {[%emt 0:00:32]} Qxc6 {[%emt 0:00:06]} 9. O-O {[%emt 0:00:13]}
Ne7 {[%emt 0:00:19]} 10. Bf3 {[%emt 0:01:25]} d5 {[%emt 0:00:48]} 11. Nc3 {
[%emt 0:00:22]} Be6 {[%emt 0:00:03]} 12. Qg5 {[%emt 0:00:32]} Kf8 {[%emt 0:01:
21]} 13. Rad1 {[%emt 0:00:42]} f6 {[%emt 0:00:48]} 14. Qe3 {[%emt 0:00:46]} Kf7
{[%emt 0:00:30]} 15. Rfe1 {[%emt 0:00:11]} Rhe8 {[%emt 0:00:21]} 16. Qd4 {
[%emt 0:02:09]} Qb6 {[%emt 0:01:44]} 17. Qh4 {[%emt 0:02:13]} Ng6 {[%emt 0:00:
02]} 18. Qg3 {[%emt 0:00:44]} c6 {[%emt 0:00:42]} 19. b3 {[%emt 0:00:29]} Rad8
{[%emt 0:01:05]} 20. Ne2 {[%emt 0:00:21]} Bf5 {[%emt 0:00:09]} 21. c3 {[%emt 0:
00:26]} Ne5 {[%emt 0:00:14]} 22. Nd4 {[%emt 0:00:16]} Bg6 {[%emt 0:00:48]} 23.
Bg4 {[%emt 0:00:15]} Nxg4 {[%emt 0:01:33]} 24. Qxg4 {[%emt 0:00:01]} c5 {[%emt
0:00:02]} 25. Rxe8 {[%emt 0:00:15]} Rxe8 {[%emt 0:00:03]} 26. Qd7+ {[%emt 0:00:
01]} Kf8 {[%emt 0:00:01]} 27. Nf5 {[%emt 0:00:30]} Bxf5 {[%emt 0:00:03]} 28.
Qxf5 {[%emt 0:00:01]} Qe6 {[%emt 0:00:00]} 29. Qxe6 {[%emt 0:00:17]} Rxe6 {
[%emt 0:00:01]} 30. Kf1 {[%emt 0:00:01]} Rd6 {[%emt 0:00:02]} 31. Ke2 {[%emt 0:
00:07]} Ke7 {[%emt 0:00:04]} 32. Kd3 {[%emt 0:00:01]} Re6 {[%emt 0:00:03]} 33.
b4 {[%emt 0:00:16]} c4+ {[%emt 0:00:32]} 34. Kc2 {[%emt 0:00:57]} Re2+ {[%emt
0:00:04]} 35. Rd2 {[%emt 0:00:00]} Rxd2+ {[%emt 0:00:04]} 36. Kxd2 {[%emt 0:00:
01]} Ke6 {[%emt 0:00:01]} 37. Ke3 {[%emt 0:00:01]} b6 {[%emt 0:00:45]} 38. g4 {
[%emt 0:00:53]} g5 {[%emt 0:00:42]} 39. Kd4 {[%emt 0:00:09]} Kd6 {[%emt 0:00:
20]} 40. a4 {[%emt 0:00:10]} Ke6 {[%emt 0:00:06]} 41. a5 {[%emt 0:00:03]} Kd6 {
[%emt 0:00:02]} 42. h3 {[%emt 0:00:03]} Ke6 {[%emt 0:00:02]} 43. axb6 {[%emt 0:
00:11]} 0-1

[Event "Championnat de France Universitaire Nan"]
[Site "Nancy, France"]
[Date "2020.02.08"]
[Round "4.8"]
[White "Geronimi, Pierre-Francois"]
[Black "Roch, Florian"]
[Result "1-0"]
[WhiteElo "2070"]
[BlackElo "1959"]
[PlyCount "79"]
[EventDate "2020.??.??"]
[TimeControl "15+5"]
[WhiteClock "0:01:52"]
[BlackClock "0:00:11"]

1. e4 {[%emt 0:00:02]} c5 {[%emt 0:00:01]} 2. Nf3 {[%emt 0:00:01]} d6 {[%emt 0:
00:01]} 3. d4 {[%emt 0:00:01]} cxd4 {[%emt 0:00:00]} 4. Nxd4 {[%emt 0:00:01]}
Nf6 {[%emt 0:00:00]} 5. Bd3 {[%emt 0:00:01]} g6 {[%emt 0:00:14]} 6. O-O {[%emt
0:00:06]} Bg7 {[%emt 0:00:01]} 7. c3 {[%emt 0:00:10]} O-O {[%emt 0:00:06]} 8.
Qe2 {[%emt 0:00:09]} a6 {[%emt 0:00:19]} 9. a4 {[%emt 0:00:03]} Qc7 {[%emt 0:
00:16]} 10. Ra3 {[%emt 0:00:50]} b6 {[%emt 0:00:44]} 11. f3 {[%emt 0:00:15]}
Nbd7 {[%emt 0:00:17]} 12. Be3 {[%emt 0:00:49]} Bb7 {[%emt 0:00:27]} 13. Nd2 {
[%emt 0:00:23]} Rfe8 {[%emt 0:00:44]} 14. b4 {[%emt 0:00:40]} d5 {[%emt 0:00:
14]} 15. Bf2 {[%emt 0:00:47]} e5 {[%emt 0:00:40]} 16. Nc2 {[%emt 0:00:41]} dxe4
{[%emt 0:01:32]} 17. Nxe4 {[%emt 0:00:15]} Nd5 {[%emt 0:01:26]} 18. Rd1 {[%emt
0:02:09]} Nf4 {[%emt 0:00:36]} 19. Qf1 {[%emt 0:00:10]} Nxd3 {[%emt 0:01:17]}
20. Qxd3 {[%emt 0:00:02]} Bxe4 {[%emt 0:02:19]} 21. Qxe4 {[%emt 0:00:01]} Rad8
{[%emt 0:00:24]} 22. Qe3 {[%emt 0:00:55]} Nf6 {[%emt 0:00:49]} 23. Rxd8 {[%emt
0:01:44]} Rxd8 {[%emt 0:00:02]} 24. Qe1 {[%emt 0:00:14]} Qd6 {[%emt 0:00:50]}
25. Ne3 {[%emt 0:00:49]} e4 {[%emt 0:01:23]} 26. Ra1 {[%emt 0:00:31]} exf3 {
[%emt 0:00:08]} 27. Rd1 {[%emt 0:00:18]} Qc7 {[%emt 0:00:12]} 28. Rxd8+ {[%emt
0:00:01]} Qxd8 {[%emt 0:00:01]} 29. gxf3 {[%emt 0:00:02]} h5 {[%emt 0:00:45]}
30. Qd1 {[%emt 0:00:28]} Qc7 {[%emt 0:00:18]} 31. Qd3 {[%emt 0:00:11]} Qf4 {
[%emt 0:00:22]} 32. Kg2 {[%emt 0:01:18]} h4 {[%emt 0:00:14]} 33. h3 {[%emt 0:
01:26]} Nh5 {[%emt 0:00:14]} 34. Qd8+ {[%emt 0:00:04]} Bf8 {[%emt 0:00:33]} 35.
Qxh4 {[%emt 0:00:07]} Qc7 {[%emt 0:00:11]} 36. Nd5 {[%emt 0:00:08]} Qe5 {[%emt
0:00:13]} 37. Qe4 {[%emt 0:00:03]} Qg5+ {[%emt 0:00:10]} 38. Kf1 {[%emt 0:00:
09]} Bd6 {[%emt 0:00:02]} 39. Qe8+ {[%emt 0:00:25]} Kg7 {[%emt 0:00:05]} 40.
Bd4+ {[%emt 0:00:02]} 1-0

[Event "Championnat de France Universitaire Nan"]
[Site "Nancy, France"]
[Date "2020.02.08"]
[Round "5.1"]
[White "Rakotomaharo, Fy Antenaina"]
[Black "Albaric, Etienne"]
[Result "1-0"]
[WhiteElo "2430"]
[BlackElo "2258"]
[PlyCount "59"]
[EventDate "2020.??.??"]
[TimeControl "15+5"]
[WhiteClock "0:01:07"]
[BlackClock "0:00:07"]

1. d4 {[%emt 0:00:01]} Nf6 {[%emt 0:00:01]} 2. Nf3 {[%emt 0:00:02]} e6 {[%emt
0:00:05]} 3. Bf4 {[%emt 0:00:08]} c5 {[%emt 0:00:07]} 4. e3 {[%emt 0:00:01]}
Be7 {[%emt 0:00:15]} 5. Nbd2 {[%emt 0:00:14]} O-O {[%emt 0:00:10]} 6. Bd3 {
[%emt 0:00:10]} b6 {[%emt 0:00:13]} 7. O-O {[%emt 0:00:11]} Bb7 {[%emt 0:00:02]
} 8. c3 {[%emt 0:00:06]} Nh5 {[%emt 0:01:10]} 9. Bg3 {[%emt 0:02:06]} f5 {
[%emt 0:01:33]} 10. Qc2 {[%emt 0:00:42]} g5 {[%emt 0:00:58]} 11. Bxb8 {[%emt 0:
02:14]} Rxb8 {[%emt 0:00:40]} 12. g4 {[%emt 0:00:10]} Ng7 {[%emt 0:01:22]} 13.
gxf5 {[%emt 0:01:51]} Nxf5 {[%emt 0:00:56]} 14. e4 {[%emt 0:00:04]} Ng7 {[%emt
0:01:53]} 15. d5 {[%emt 0:00:05]} Qe8 {[%emt 0:00:45]} 16. c4 {[%emt 0:01:44]}
Qh5 {[%emt 0:00:42]} 17. Ne5 {[%emt 0:01:54]} Bd6 {[%emt 0:00:55]} 18. Qc3 {
[%emt 0:00:02]} g4 {[%emt 0:02:10]} 19. f4 {[%emt 0:00:01]} Rxf4 {[%emt 0:00:
01]} 20. Nxd7 {[%emt 0:00:01]} Qh3 {[%emt 0:01:55]} 21. e5 {[%emt 0:02:24]} g3
{[%emt 0:00:15]} 22. Bxh7+ {[%emt 0:00:02]} Kh8 {[%emt 0:00:14]} 23. hxg3 {
[%emt 0:00:26]} Rxf1+ {[%emt 0:00:19]} 24. Rxf1 {[%emt 0:00:30]} exd5 {[%emt 0:
00:06]} 25. cxd5 {[%emt 0:00:11]} Bxd5 {[%emt 0:00:02]} 26. Be4 {[%emt 0:00:01]
} Bxe4 {[%emt 0:00:22]} 27. Nxe4 {[%emt 0:00:01]} Rd8 {[%emt 0:00:05]} 28. exd6
{[%emt 0:00:53]} Rxd7 {[%emt 0:00:01]} 29. Qf6 {[%emt 0:00:04]} Qh5 {[%emt 0:
00:12]} 30. Qf8+ {[%emt 0:00:02]} 1-0

[Event "Championnat de France Universitaire Nan"]
[Site "Nancy, France"]
[Date "2020.02.08"]
[Round "5.2"]
[White "Budak, Rewi"]
[Black "Msellek, Ilyass"]
[Result "1/2-1/2"]
[WhiteElo "2079"]
[BlackElo "2261"]
[PlyCount "28"]
[EventDate "2020.??.??"]
[TimeControl "15+5"]
[WhiteClock "0:05:01"]
[BlackClock "0:10:42"]

1. e4 {[%emt 0:00:01]} c5 {[%emt 0:00:21]} 2. d4 {[%emt 0:00:07]} cxd4 {[%emt
0:00:02]} 3. Nf3 {[%emt 0:00:00]} e6 {[%emt 0:00:05]} 4. c3 {[%emt 0:00:20]}
Nf6 {[%emt 0:00:19]} 5. e5 {[%emt 0:00:02]} Nd5 {[%emt 0:00:00]} 6. cxd4 {
[%emt 0:00:01]} b6 {[%emt 0:00:00]} 7. Bd3 {[%emt 0:00:49]} Ba6 {[%emt 0:00:51]
} 8. Bxa6 {[%emt 0:00:13]} Nxa6 {[%emt 0:00:00]} 9. Qe2 {[%emt 0:00:00]} Nab4 {
[%emt 0:01:06]} 10. O-O {[%emt 0:02:38]} Rc8 {[%emt 0:00:15]} 11. Nc3 {[%emt 0:
06:14]} Nxc3 {[%emt 0:01:49]} 12. bxc3 {[%emt 0:00:02]} Rxc3 {[%emt 0:00:08]}
13. Bg5 {[%emt 0:00:39]} Be7 {[%emt 0:00:33]} 14. Rac1 {[%emt 0:08:32]} Rxc1
1/2-1/2

[Event "Championnat de France Universitaire Nan"]
[Site "Nancy, France"]
[Date "2020.02.08"]
[Round "5.3"]
[White "Gatineau, Yovann"]
[Black "Daeschler, Florian"]
[Result "1-0"]
[WhiteElo "2381"]
[BlackElo "2327"]
[PlyCount "41"]
[EventDate "2020.??.??"]
[TimeControl "15+5"]
[WhiteClock "0:09:26"]
[BlackClock "0:12:08"]

1. Nf3 {[%emt 0:00:01]} Nf6 {[%emt 0:00:00]} 2. c4 {[%emt 0:00:01]} e6 {[%emt
0:00:02]} 3. g3 {[%emt 0:00:00]} d5 {[%emt 0:00:01]} 4. Bg2 {[%emt 0:00:00]}
Be7 {[%emt 0:00:00]} 5. O-O {[%emt 0:00:03]} O-O {[%emt 0:00:02]} 6. b3 {[%emt
0:00:00]} c5 {[%emt 0:00:01]} 7. cxd5 {[%emt 0:00:05]} Nxd5 {[%emt 0:00:01]} 8.
Bb2 {[%emt 0:00:35]} Nc6 {[%emt 0:00:02]} 9. d4 {[%emt 0:00:10]} cxd4 {[%emt 0:
00:03]} 10. Nxd4 {[%emt 0:00:02]} Nxd4 {[%emt 0:00:09]} 11. Qxd4 {[%emt 0:00:
17]} Bf6 {[%emt 0:00:01]} 12. Qd2 {[%emt 0:00:01]} Nf4 {[%emt 0:01:15]} 13.
Bxf6 {[%emt 0:04:47]} Qxf6 {[%emt 0:01:58]} 14. gxf4 {[%emt 0:00:03]} Qxa1 {
[%emt 0:00:21]} 15. Nc3 {[%emt 0:00:00]} Qxf1+ {[%emt 0:00:02]} 16. Kxf1 {
[%emt 0:00:02]} e5 {[%emt 0:00:21]} 17. fxe5 {[%emt 0:00:03]} Be6 {[%emt 0:00:
01]} 18. Bxb7 {[%emt 0:00:23]} Rad8 {[%emt 0:00:08]} 19. Qe3 {[%emt 0:00:08]}
Rd7 {[%emt 0:00:05]} 20. Bc6 {[%emt 0:00:32]} Rc7 {[%emt 0:00:05]} 21. Nd5 {
[%emt 0:00:04]} 1-0

[Event "Championnat de France Universitaire Nan"]
[Site "Nancy, France"]
[Date "2020.02.08"]
[Round "5.4"]
[White "Noir, Mathys"]
[Black "Lambert, Thomas"]
[Result "0-1"]
[WhiteElo "1883"]
[BlackElo "1988"]
[PlyCount "68"]
[EventDate "2020.??.??"]
[TimeControl "15+5"]
[WhiteClock "0:00:16"]
[BlackClock "0:00:52"]

1. e4 {[%emt 0:00:01]} e5 {[%emt 0:00:02]} 2. Nf3 {[%emt 0:00:07]} Nc6 {[%emt
0:00:02]} 3. Bc4 {[%emt 0:00:03]} Bc5 {[%emt 0:00:02]} 4. c3 {[%emt 0:00:07]}
Nf6 {[%emt 0:00:03]} 5. d3 {[%emt 0:00:05]} O-O {[%emt 0:00:04]} 6. O-O {[%emt
0:00:08]} d5 {[%emt 0:00:02]} 7. exd5 {[%emt 0:00:09]} Nxd5 {[%emt 0:00:00]} 8.
Re1 {[%emt 0:00:08]} Bg4 {[%emt 0:00:16]} 9. h3 {[%emt 0:01:13]} Bh5 {[%emt 0:
02:05]} 10. g4 {[%emt 0:00:52]} Bg6 {[%emt 0:00:03]} 11. Nxe5 {[%emt 0:00:11]}
Nxe5 {[%emt 0:04:25]} 12. Rxe5 {[%emt 0:00:23]} Bxf2+ {[%emt 0:00:01]} 13. Kg2
{[%emt 0:01:20]} Nb6 {[%emt 0:00:26]} 14. Qf3 {[%emt 0:00:52]} Nxc4 {[%emt 0:
00:41]} 15. dxc4 {[%emt 0:00:01]} Bh4 {[%emt 0:00:16]} 16. Be3 {[%emt 0:02:36]}
Qd3 {[%emt 0:01:09]} 17. Rd5 {[%emt 0:01:44]} Qxc4 {[%emt 0:01:30]} 18. Rd4 {
[%emt 0:00:27]} Qb5 {[%emt 0:00:21]} 19. Rb4 {[%emt 0:01:02]} Qe5 {[%emt 0:00:
47]} 20. Nd2 {[%emt 0:01:55]} f5 {[%emt 0:01:00]} 21. Bf4 {[%emt 0:01:53]} Qe7
{[%emt 0:00:01]} 22. Rxb7 {[%emt 0:00:55]} fxg4 {[%emt 0:00:04]} 23. hxg4 {
[%emt 0:00:08]} Rad8 {[%emt 0:00:30]} 24. Qe3 {[%emt 0:00:41]} Qxe3 {[%emt 0:
00:10]} 25. Bxe3 {[%emt 0:00:02]} Rxd2+ {[%emt 0:00:02]} 26. Bxd2 {[%emt 0:00:
01]} Be4+ {[%emt 0:00:19]} 27. Kh3 {[%emt 0:00:01]} g5 {[%emt 0:01:32]} 28.
Rxc7 {[%emt 0:00:16]} Rf3+ {[%emt 0:00:01]} 29. Kh2 {[%emt 0:00:02]} Bg3+ {
[%emt 0:00:01]} 30. Kg1 {[%emt 0:00:05]} Bxc7 {[%emt 0:00:02]} 31. Re1 {[%emt
0:00:10]} Bb6+ {[%emt 0:00:10]} 32. Kh2 {[%emt 0:00:06]} Rf2+ {[%emt 0:00:02]}
33. Kg3 {[%emt 0:00:05]} Rg2+ {[%emt 0:00:41]} 34. Kh3 {[%emt 0:00:01]} Bc7 {
[%emt 0:00:36]} 0-1

[Event "Championnat de France Universitaire Nan"]
[Site "Nancy, France"]
[Date "2020.02.08"]
[Round "5.5"]
[White "Defromont, Benjamin"]
[Black "Buttard, Axel"]
[Result "0-1"]
[WhiteElo "2263"]
[BlackElo "1905"]
[PlyCount "64"]
[EventDate "2020.??.??"]
[TimeControl "15+5"]
[WhiteClock "0:01:13"]
[BlackClock "0:01:44"]

1. e4 {[%emt 0:00:02]} e5 {[%emt 0:00:02]} 2. Nf3 {[%emt 0:00:02]} Nc6 {[%emt
0:00:02]} 3. Bb5 {[%emt 0:00:02]} Bc5 {[%emt 0:00:02]} 4. O-O {[%emt 0:00:12]}
Nd4 {[%emt 0:00:02]} 5. Nxd4 {[%emt 0:00:07]} Bxd4 {[%emt 0:00:01]} 6. c3 {
[%emt 0:01:04]} Bb6 {[%emt 0:00:03]} 7. d4 {[%emt 0:00:14]} c6 {[%emt 0:00:02]}
8. Ba4 {[%emt 0:00:45]} d6 {[%emt 0:00:22]} 9. Be3 {[%emt 0:00:19]} Nf6 {[%emt
0:00:29]} 10. Nd2 {[%emt 0:00:22]} O-O {[%emt 0:00:23]} 11. h3 {[%emt 0:00:54]}
Qe7 {[%emt 0:00:45]} 12. Bc2 {[%emt 0:00:31]} Re8 {[%emt 0:03:30]} 13. f4 {
[%emt 0:00:16]} exd4 {[%emt 0:01:07]} 14. cxd4 {[%emt 0:00:13]} Bf5 {[%emt 0:
00:59]} 15. e5 {[%emt 0:03:02]} Bxc2 {[%emt 0:01:30]} 16. Qxc2 {[%emt 0:00:09]}
Nd5 {[%emt 0:01:04]} 17. Bf2 {[%emt 0:00:01]} Nxf4 {[%emt 0:01:03]} 18. Rae1 {
[%emt 0:00:44]} Qg5 {[%emt 0:00:23]} 19. g3 {[%emt 0:02:31]} Nxh3+ {[%emt 0:00:
21]} 20. Kg2 {[%emt 0:00:05]} Nxf2 {[%emt 0:00:42]} 21. Rxf2 {[%emt 0:00:01]}
Bxd4 {[%emt 0:00:26]} 22. Rf5 {[%emt 0:00:23]} Qg6 {[%emt 0:00:22]} 23. Ref1 {
[%emt 0:01:44]} Bxe5 {[%emt 0:00:13]} 24. Qb3 {[%emt 0:00:04]} Re7 {[%emt 0:00:
30]} 25. Ne4 {[%emt 0:00:37]} h6 {[%emt 0:00:17]} 26. Qf3 {[%emt 0:00:48]} Rae8
{[%emt 0:00:17]} 27. Rf2 {[%emt 0:00:31]} Bd4 {[%emt 0:00:18]} 28. Re2 {[%emt
0:00:16]} d5 {[%emt 0:00:11]} 29. Nc3 {[%emt 0:00:22]} Rxe2+ {[%emt 0:00:12]}
30. Nxe2 {[%emt 0:00:01]} Rxe2+ {[%emt 0:00:16]} 31. Qxe2 {[%emt 0:00:06]} Qxf5
{[%emt 0:00:03]} 32. Qe8+ {[%emt 0:00:02]} Kh7 {[%emt 0:00:03]} 0-1

[Event "Championnat de France Universitaire Nan"]
[Site "Nancy, France"]
[Date "2020.02.08"]
[Round "5.6"]
[White "Kajganic, Fabien"]
[Black "Leveque, Guillaume"]
[Result "1-0"]
[WhiteElo "1908"]
[BlackElo "2063"]
[PlyCount "57"]
[EventDate "2020.??.??"]
[TimeControl "15+5"]
[WhiteClock "0:00:24"]
[BlackClock "0:00:33"]

1. e4 {[%emt 0:00:02]} c5 {[%emt 0:00:03]} 2. Nc3 {[%emt 0:00:02]} e6 {[%emt 0:
00:09]} 3. g3 {[%emt 0:00:03]} g6 {[%emt 0:00:05]} 4. Bg2 {[%emt 0:00:02]} Bg7
{[%emt 0:00:02]} 5. d3 {[%emt 0:00:03]} Nc6 {[%emt 0:00:18]} 6. Be3 {[%emt 0:
00:04]} b6 {[%emt 0:00:14]} 7. Qd2 {[%emt 0:00:23]} Nge7 {[%emt 0:00:09]} 8.
Nge2 {[%emt 0:01:09]} O-O {[%emt 0:00:48]} 9. Bh6 {[%emt 0:00:26]} d5 {[%emt 0:
00:16]} 10. exd5 {[%emt 0:00:13]} exd5 {[%emt 0:00:16]} 11. h4 {[%emt 0:00:55]}
Bxh6 {[%emt 0:03:47]} 12. Qxh6 {[%emt 0:00:01]} Nf5 {[%emt 0:00:02]} 13. Qf4 {
[%emt 0:01:39]} Be6 {[%emt 0:00:26]} 14. O-O-O {[%emt 0:02:42]} Rc8 {[%emt 0:
00:57]} 15. g4 {[%emt 0:00:43]} Nfd4 {[%emt 0:00:57]} 16. h5 {[%emt 0:00:54]}
Qc7 {[%emt 0:01:27]} 17. Qh6 {[%emt 0:01:55]} Rcd8 {[%emt 0:01:10]} 18. Nf4 {
[%emt 0:00:25]} Ne5 {[%emt 0:02:47]} 19. Ncxd5 {[%emt 0:01:38]} Nxg4 {[%emt 0:
01:16]} 20. Nxc7 {[%emt 0:00:55]} Nxh6 {[%emt 0:00:01]} 21. hxg6 {[%emt 0:00:
08]} Ng4 {[%emt 0:00:34]} 22. gxh7+ {[%emt 0:00:24]} Kh8 23. Rh4 {[%emt 0:01:
26]} Ne5 {[%emt 0:00:28]} 24. c3 {[%emt 0:00:29]} Nf5 {[%emt 0:00:01]} 25. Rh5
{[%emt 0:00:12]} Rd6 {[%emt 0:00:17]} 26. Ncxe6 {[%emt 0:00:08]} fxe6 {[%emt 0:
00:01]} 27. d4 {[%emt 0:00:02]} Ng4 {[%emt 0:00:11]} 28. Ng6+ {[%emt 0:00:02]}
Kg7 {[%emt 0:00:10]} 29. Nxf8 {[%emt 0:00:01]} 1-0

[Event "Championnat de France Universitaire Nan"]
[Site "Nancy, France"]
[Date "2020.02.08"]
[Round "5.7"]
[White "Condat, Hugo"]
[Black "Geronimi, Pierre-Francois"]
[Result "1/2-1/2"]
[WhiteElo "1946"]
[BlackElo "2070"]
[PlyCount "159"]
[EventDate "2020.??.??"]
[TimeControl "15+5"]
[WhiteClock "0:01:04"]
[BlackClock "0:00:16"]

1. e4 {[%emt 0:00:00]} g6 {[%emt 0:00:02]} 2. d4 {[%emt 0:00:03]} Bg7 {[%emt 0:
00:00]} 3. Nc3 {[%emt 0:00:02]} c5 {[%emt 0:00:02]} 4. Nf3 {[%emt 0:01:33]} a6
{[%emt 0:00:18]} 5. Be3 {[%emt 0:01:07]} cxd4 {[%emt 0:02:14]} 6. Bxd4 {[%emt
0:00:02]} Nf6 {[%emt 0:01:53]} 7. Bc4 {[%emt 0:00:23]} O-O {[%emt 0:00:52]} 8.
O-O {[%emt 0:00:11]} Nc6 {[%emt 0:00:26]} 9. Be3 {[%emt 0:00:03]} d6 {[%emt 0:
00:06]} 10. h3 {[%emt 0:00:11]} Bd7 {[%emt 0:00:18]} 11. a4 {[%emt 0:00:41]}
Rc8 {[%emt 0:00:16]} 12. Ba2 {[%emt 0:01:06]} Qa5 {[%emt 0:00:45]} 13. Rb1 {
[%emt 0:02:02]} b5 {[%emt 0:01:48]} 14. axb5 {[%emt 0:00:36]} axb5 {[%emt 0:00:
01]} 15. Bb3 {[%emt 0:00:31]} b4 {[%emt 0:00:52]} 16. Nd5 {[%emt 0:00:00]} Nxd5
{[%emt 0:00:06]} 17. Bxd5 {[%emt 0:00:14]} Ne5 {[%emt 0:00:16]} 18. Nxe5 {
[%emt 0:00:29]} Bxe5 {[%emt 0:00:02]} 19. Ra1 {[%emt 0:00:53]} Qd8 {[%emt 0:00:
17]} 20. Bd4 {[%emt 0:00:15]} Bxd4 {[%emt 0:00:20]} 21. Qxd4 {[%emt 0:00:02]}
Rxc2 {[%emt 0:00:28]} 22. Qxb4 {[%emt 0:00:08]} Qb8 {[%emt 0:00:45]} 23. Qxb8 {
[%emt 0:00:39]} Rxb8 {[%emt 0:00:01]} 24. b3 {[%emt 0:00:34]} Be6 {[%emt 0:00:
26]} 25. Ra7 {[%emt 0:00:36]} Kf8 {[%emt 0:00:24]} 26. Re1 {[%emt 0:00:46]} Rb2
{[%emt 0:00:57]} 27. Re3 {[%emt 0:00:23]} Rc8 {[%emt 0:01:32]} 28. Rf3 {[%emt
0:00:37]} Rc1+ {[%emt 0:00:49]} 29. Kh2 {[%emt 0:00:02]} Bxd5 {[%emt 0:00:01]}
30. exd5 {[%emt 0:00:02]} Re1 {[%emt 0:00:04]} 31. Kg3 {[%emt 0:00:15]} Kg7 {
[%emt 0:00:17]} 32. Re3 {[%emt 0:01:16]} Rxe3+ {[%emt 0:00:08]} 33. fxe3 {
[%emt 0:00:01]} Rxb3 {[%emt 0:00:20]} 34. Rxe7 {[%emt 0:00:01]} Kf6 {[%emt 0:
00:00]} 35. Re8 {[%emt 0:00:06]} Rd3 {[%emt 0:00:03]} 36. Kf4 {[%emt 0:00:43]}
Rxd5 {[%emt 0:00:05]} 37. g4 {[%emt 0:00:07]} h6 {[%emt 0:00:11]} 38. Rh8 {
[%emt 0:00:17]} Kg7 {[%emt 0:00:09]} 39. Rd8 {[%emt 0:00:00]} Rd1 {[%emt 0:00:
04]} 40. Ke4 {[%emt 0:00:11]} Rh1 {[%emt 0:00:13]} 41. Rxd6 Rxh3 {[%emt 0:00:
01]} 42. Kf4 {[%emt 0:00:25]} Rh1 {[%emt 0:00:01]} 43. Ra6 {[%emt 0:00:09]} h5
{[%emt 0:00:05]} 44. gxh5 {[%emt 0:00:02]} Rxh5 {[%emt 0:00:01]} 45. e4 {[%emt
0:00:07]} Rh1 {[%emt 0:00:03]} 46. Ra7 {[%emt 0:00:07]} Rf1+ {[%emt 0:00:01]}
47. Kg5 {[%emt 0:00:11]} Rf6 {[%emt 0:00:14]} 48. Rb7 {[%emt 0:00:04]} Re6 {
[%emt 0:00:02]} 49. Kf4 {[%emt 0:00:10]} Kf6 {[%emt 0:00:03]} 50. Rb5 {[%emt 0:
00:03]} g5+ {[%emt 0:00:12]} 51. Kf3 {[%emt 0:00:22]} Kg6 {[%emt 0:00:06]} 52.
Rc5 {[%emt 0:00:15]} Rf6+ {[%emt 0:00:01]} 53. Kg3 {[%emt 0:00:06]} Rf1 {[%emt
0:00:08]} 54. Re5 {[%emt 0:00:13]} f6 {[%emt 0:00:07]} 55. Rb5 {[%emt 0:00:04]}
Re1 {[%emt 0:00:05]} 56. Kf3 {[%emt 0:00:02]} Rf1+ {[%emt 0:00:09]} 57. Kg3 {
[%emt 0:00:03]} Ra1 {[%emt 0:00:05]} 58. Rc5 {[%emt 0:00:02]} Ra3+ {[%emt 0:00:
05]} 59. Kg4 {[%emt 0:00:03]} Ra4 {[%emt 0:00:02]} 60. Kf3 {[%emt 0:00:02]} Ra6
{[%emt 0:00:02]} 61. Rb5 {[%emt 0:00:01]} Re6 {[%emt 0:00:01]} 62. Ra5 {[%emt
0:00:05]} Kh6 {[%emt 0:00:22]} 63. Ra1 {[%emt 0:00:04]} Re5 {[%emt 0:00:04]}
64. Ra6 {[%emt 0:00:04]} Kg6 {[%emt 0:00:01]} 65. Rb6 {[%emt 0:00:01]} Ra5 {
[%emt 0:00:01]} 66. Rc6 {[%emt 0:00:01]} Ra3+ {[%emt 0:00:13]} 67. Kg4 {[%emt
0:00:02]} Re3 {[%emt 0:00:01]} 68. Rc4 {[%emt 0:00:02]} Re1 {[%emt 0:00:05]}
69. Ra4 {[%emt 0:00:03]} Rg1+ {[%emt 0:00:04]} 70. Kf3 {[%emt 0:00:01]} g4+ {
[%emt 0:00:02]} 71. Kf2 {[%emt 0:00:06]} Rb1 {[%emt 0:00:04]} 72. Kg3 {[%emt 0:
00:08]} Rg1+ {[%emt 0:00:05]} 73. Kf2 {[%emt 0:00:00]} Rc1 {[%emt 0:00:28]} 74.
Kg3 {[%emt 0:00:01]} Rg1+ {[%emt 0:00:09]} 75. Kf2 {[%emt 0:00:01]} Rh1 {[%emt
0:00:03]} 76. Kg3 {[%emt 0:00:03]} Re1 {[%emt 0:00:07]} 77. Kxg4 {[%emt 0:00:
04]} Rxe4+ {[%emt 0:00:11]} 78. Rxe4 {[%emt 0:00:03]} f5+ {[%emt 0:00:00]} 79.
Kf4 fxe4 {[%emt 0:00:01]} 80. Kxe4 {[%emt 0:00:08]} 1/2-1/2